bitfinex/quotes_BTCUSD_20250101
["timestamp","ask_amount","ask_price","bid_price","bid_amount"]
[1735757491026,0.211777,94439.0,94433.0,0.21901633]
[1735757491232,0.211777,94439.0,94434.0,0.10398632]
[1735757491437,0.211777,94439.0,94434.0,0.11715275]
[1735757491612,0.211766,94444.0,94438.0,0.023]
[1735757491814,0.211766,94444.0,94440.0,0.0831]
[1735757492041,0.211766,94444.0,94441.0,0.11715044]
[1735757492249,8.54e-05,94446.0,94442.0,0.12698632]
[1735757492420,8.54e-05,94446.0,94444.0,0.023]
[1735757492620,8.54e-05,94446.0,94444.0,0.14014981]
[1735757493093,8.54e-05,94446.0,94444.0,0.28534183]
[1735757493297,0.2118483,94445.0,94444.0,0.31027126]
[1735757494055,0.2118483,94445.0,94444.0,0.64461387]
[1735757494056,0.2128483,94445.0,94444.0,0.64461387]
[1735757494889,0.2128483,94445.0,94444.0,0.64761387]
[1735757495089,0.2128483,94445.0,94444.0,0.56451387]
[1735757495678,0.2128483,94445.0,94444.0,0.54892185]
[1735757496267,0.2128483,94445.0,94444.0,0.47942185]
[1735757496768,0.2898483,94445.0,94444.0,0.12914981]
[1735757497244,0.2898483,94445.0,94444.0,0.02516349]
[1735757497500,0.2888483,94445.0,94444.0,0.01616349]
[1735757497725,0.2888483,94445.0,94444.0,0.004]
[1735757497958,0.4388483,94445.0,94444.0,0.004]
[1735757498230,0.4388483,94445.0,94444.0,0.001]
[1735757498651,0.4877483,94445.0,94444.0,0.002]
[1735757499621,0.4877483,94445.0,94444.0,0.001]
[1735757499829,0.15,94444.0,94433.0,0.0001708]
[1735757500037,0.211788,94434.0,94433.0,0.0001708]
[1735757500265,0.211788,94434.0,94433.0,0.10415712]
[1735757500481,0.2541445,94434.0,94433.0,0.10415712]
[1735757501150,0.211788,94434.0,94433.0,0.10415712]
[1735757501357,0.211788,94434.0,94433.0,0.10615712]
[1735757503684,0.288188,94434.0,94433.0,0.0021708]
[1735757504108,0.288188,94434.0,94433.0,0.0001708]
[1735757504312,0.288188,94434.0,94433.0,8e-07]
[1735757506048,0.288188,94434.0,94422.0,0.00031958]
[1735757506253,0.211812,94423.0,94422.0,0.00031958]
[1735757506485,0.211812,94423.0,94422.0,0.1043059]
[1735757506906,0.211812,94423.0,94422.0,0.11507399]
[1735757507522,0.211812,94423.0,94422.0,0.11707399]
[1735757507898,0.211812,94423.0,94422.0,0.1063059]
[1735757508342,0.211812,94423.0,94422.0,0.00231958]
[1735757509698,0.212812,94423.0,94422.0,0.00231958]
[1735757509904,0.289212,94423.0,94422.0,0.00031958]
[1735757510114,0.289212,94423.0,94422.0,5.8e-07]
[1735757511563,0.290212,94423.0,94422.0,5.8e-07]
[1735757511913,0.439212,94423.0,94422.0,5.8e-07]
[1735757512127,0.53934104,94423.0,94422.0,5.8e-07]
[1735757512323,0.44099904,94423.0,94422.0,5.8e-07]
[1735757512530,0.44499904,94423.0,94422.0,5.8e-07]
[1735757512727,0.43899904,94423.0,94422.0,5.8e-07]
[1735757512949,0.53899904,94423.0,94422.0,5.8e-07]
[1735757513152,0.44599904,94423.0,94422.0,5.8e-07]
[1735757513714,0.45399904,94423.0,94422.0,5.8e-07]
[1735757513915,0.44899904,94423.0,94392.0,0.023]
[1735757514122,0.288246,94408.0,94391.0,0.09482374]
[1735757514527,0.288246,94408.0,94388.0,0.0001706]
[1735757516018,0.29037504,94408.0,94388.0,0.0001706]
[1735757516599,0.29337504,94408.0,94388.0,0.0001706]
[1735757517262,0.33917504,94408.0,94407.0,6e-07]
[1735757517506,0.33983442,94408.0,94407.0,6e-07]
[1735757519286,0.48983442,94408.0,94407.0,6e-07]
[1735757520471,0.443246,94408.0,94407.0,6e-07]
[1735757522158,0.366846,94408.0,94407.0,6e-07]
[1735757523326,0.363846,94408.0,94407.0,6e-07]
[1735757523707,0.364846,94408.0,94407.0,6e-07]
[1735757524486,0.362846,94408.0,94407.0,6e-07]
[1735757524779,0.364846,94408.0,94407.0,6e-07]
[1735757524980,0.214846,94408.0,94407.0,6e-07]
[1735757525158,0.212846,94408.0,94407.0,6e-07]
[1735757525567,0.213846,94408.0,94407.0,6e-07]
[1735757526261,0.212846,94408.0,94407.0,6e-07]
[1735757526466,0.211846,94408.0,94407.0,6e-07]
[1735757526771,0.211846,94408.0,94407.0,0.0010006]
[1735757527179,0.211846,94408.0,94407.0,0.10498692]
[1735757527998,0.21178303,94408.0,94407.0,0.10498692]
[1735757529436,0.21178303,94408.0,94407.0,0.18148692]
[1735757529734,0.21178303,94408.0,94407.0,0.19227523]
[1735757532127,0.21178303,94408.0,94407.0,0.11577523]
[1735757533030,0.21195383,94408.0,94407.0,0.11577523]
[1735757538861,0.21195383,94408.0,94407.0,0.10498692]
[1735757539298,0.21195383,94408.0,94407.0,0.0010006]
[1735757542551,0.21195383,94408.0,94407.0,6e-07]
[1735757542831,0.21295383,94408.0,94407.0,6e-07]
[1735757543617,0.21395383,94408.0,94407.0,6e-07]
[1735757553223,0.29015383,94408.0,94407.0,6e-07]
[1735757555127,0.28915383,94408.0,94407.0,6e-07]
[1735757555336,0.29415383,94408.0,94407.0,6e-07]
[1735757555703,0.21795383,94408.0,94407.0,6e-07]
[1735757556661,0.21695383,94408.0,94407.0,6e-07]
[1735757557059,0.21895383,94408.0,94407.0,6e-07]
[1735757557459,0.21695383,94408.0,94407.0,6e-07]
[1735757557663,0.21195383,94408.0,94407.0,6e-07]
[1735757557843,0.21495383,94408.0,94407.0,6e-07]
[1735757558243,0.21395383,94408.0,94407.0,6e-07]
[1735757558648,0.21195383,94408.0,94407.0,6e-07]
[1735757559106,0.21195383,94408.0,94407.0,0.0010006]
[1735757583034,0.29458287,94408.0,94407.0,0.0010006]
[1735757583869,0.29458287,94408.0,94407.0,6e-07]
[1735757584081,0.29858287,94408.0,94407.0,6e-07]
[1735757585251,0.21608287,94408.0,94407.0,6e-07]
[1735757585453,0.21795383,94408.0,94407.0,6e-07]
[1735757594063,0.21808287,94408.0,94407.0,6e-07]
[1735757597793,0.29608287,94408.0,94407.0,6e-07]
[1735757598002,0.29675474,94408.0,94407.0,6e-07]
[1735757598617,0.44675474,94408.0,94407.0,6e-07]
[1735757599559,0.44075474,94408.0,94407.0,6e-07]
[1735757599765,0.44975474,94408.0,94407.0,6e-07]
[1735757599973,0.4496257,94408.0,94407.0,6e-07]
[1735757600166,0.211889,94389.0,94384.0,0.09482374]
[1735757600366,0.211889,94389.0,94388.0,0.10415692]
[1735757600589,0.211889,94389.0,94388.0,0.11495576]
[1735757600804,0.2330779,94389.0,94388.0,0.01096944]
[1735757601010,0.2330779,94389.0,94388.0,0.0001706]
[1735757601387,0.211889,94389.0,94388.0,0.00066691]
[1735757602656,0.211889,94389.0,94388.0,0.00266691]
[1735757603495,0.211889,94389.0,94388.0,0.00066691]
[1735757603701,0.211889,94389.0,94388.0,0.00166691]
[1735757606672,0.211889,94389.0,94388.0,0.10565323]
[1735757607113,0.211889,94389.0,94388.0,0.11645207]
[1735757607759,0.211889,94389.0,94388.0,0.10565323]
[1735757608981,0.210789,94389.0,94388.0,0.10565323]
[1735757609512,0.210789,94389.0,94388.0,0.00166691]
[1735757610236,0.21072427,94389.0,94388.0,0.00166691]
[1735757611496,0.28762427,94389.0,94388.0,0.00166691]
[1735757612475,0.28762427,94389.0,94388.0,0.00066691]
[1735757612884,0.21472427,94389.0,94388.0,0.00066691]
[1735757613086,0.21172427,94389.0,94388.0,0.00066691]
[1735757613499,0.21472427,94389.0,94388.0,0.00066691]
[1735757613914,0.21672427,94389.0,94388.0,0.00066691]
[1735757614084,0.21572427,94389.0,94388.0,0.00066691]
[1735757614508,0.21672427,94389.0,94388.0,0.00066691]
[1735757614924,0.21572427,94389.0,94388.0,0.00066691]
[1735757615130,0.21172427,94389.0,94388.0,0.00066691]
[1735757615447,0.21372427,94389.0,94388.0,0.00066691]
[1735757615708,0.21272427,94389.0,94388.0,0.00066691]
[1735757616321,0.21072427,94389.0,94388.0,0.00066691]
[1735757616529,0.21089487,94389.0,94388.0,0.00066691]
[1735757617349,0.21102391,94389.0,94388.0,0.00066691]
[1735757618104,0.21302391,94389.0,94388.0,0.00066691]
[1735757618766,0.21102391,94389.0,94388.0,0.00066691]
[1735757619158,0.21302391,94389.0,94388.0,0.00066691]
[1735757619355,0.21602391,94389.0,94388.0,0.00066691]
[1735757621002,0.36589487,94389.0,94387.0,5.1e-07]
[1735757621153,0.07770631,94388.0,94387.0,5.1e-07]
[1735757621756,0.07702904,94388.0,94387.0,5.1e-07]
[1735757622544,0.08202904,94388.0,94387.0,0.00100051]
[1735757623893,0.08402904,94388.0,94387.0,0.00100051]
[1735757624923,0.23402904,94388.0,94387.0,5.1e-07]
[1735757629360,0.23402904,94388.0,94387.0,8.1e-07]
[1735757641301,0.23397461,94388.0,94387.0,8.1e-07]
[1735757641946,0.23414521,94388.0,94387.0,8.1e-07]
[1735757644494,0.0071706,94388.0,94387.0,8.1e-07]
[1735757644704,0.0071706,94388.0,94387.0,0.07720081]
[1735757645731,0.0071706,94388.0,94387.0,0.25298713]
[1735757645732,0.0001706,94388.0,94387.0,0.25298713]
[1735757646066,0.0021706,94388.0,94387.0,0.2642007]
[1735757646267,0.0031706,94388.0,94387.0,0.2642007]
[1735757646773,0.0021706,94388.0,94387.0,0.2642007]
[1735757647113,0.0001706,94388.0,94387.0,0.2642007]
[1735757647696,0.0001706,94388.0,94387.0,0.2652007]
[1735757647893,0.0001706,94388.0,94387.0,0.28078743]
[1735757648378,0.0011706,94388.0,94387.0,0.28978743]
[1735757648625,0.0011706,94388.0,94387.0,0.29178743]
[1735757648834,0.0011706,94388.0,94387.0,0.2762007]
[1735757649088,0.0011706,94388.0,94387.0,0.2742007]
[1735757649316,0.0011706,94388.0,94387.0,0.65345294]
[1735757649977,0.0011706,94388.0,94387.0,0.64409537]
[1735757651472,0.0011706,94388.0,94387.0,0.29376973]
[1735757651672,0.0011706,94388.0,94387.0,0.27076973]
[1735757651932,0.0011706,94388.0,94387.0,0.19356973]
[1735757652356,0.0011706,94388.0,94387.0,0.1780007]
[1735757652557,0.0011706,94388.0,94387.0,0.2728381]
[1735757652861,0.0011706,94388.0,94387.0,0.2688381]
[1735757653214,0.0011706,94388.0,94387.0,0.2708381]
[1735757653593,0.0001706,94388.0,94387.0,0.2608381]
[1735757653852,0.0001706,94388.0,94387.0,0.1660007]
[1735757654228,0.0001706,94388.0,94387.0,0.1710007]
[1735757657406,0.0001706,94388.0,94387.0,0.1940007]
[1735757661622,0.0001706,94388.0,94387.0,0.1222007]
[1735757664347,0.0001706,94388.0,94387.0,0.01821438]
[1735757664545,0.0001706,94388.0,94387.0,0.00700081]
[1735757664766,0.0001706,94388.0,94387.0,8.1e-07]
[1735757664967,0.0001706,94388.0,94387.0,0.00400081]
[1735757665564,0.0001706,94388.0,94387.0,8.1e-07]
[1735757665763,0.0011706,94388.0,94387.0,8.1e-07]
[1735757666727,0.0021706,94388.0,94387.0,8.1e-07]
[1735757666941,0.0011706,94388.0,94387.0,8.1e-07]
[1735757667144,0.0001706,94388.0,94387.0,8.1e-07]
[1735757667990,0.0001706,94388.0,94387.0,0.10398713]
[1735757668191,0.0001706,94388.0,94387.0,0.1146363]
[1735757670520,0.0001706,94388.0,94387.0,0.1166363]
[1735757676815,0.0001706,94388.0,94387.0,0.1396363]
[1735757680690,0.0001706,94388.0,94387.0,0.15524082]
[1735757681372,0.0001706,94388.0,94387.0,0.1396363]
[1735757684783,0.0001706,94388.0,94387.0,0.15524204]
[1735757686631,0.0001706,94388.0,94387.0,0.23204204]
[1735757686844,0.0001706,94388.0,94387.0,0.2164363]
[1735757687844,0.0001706,94388.0,94387.0,0.1396363]
[1735757688052,0.00099105,94388.0,94387.0,0.1396363]
[1735757688256,0.00099105,94388.0,94387.0,0.15524223]
[1735757689482,0.00099105,94388.0,94387.0,0.1396363]
[1735757690961,0.00099105,94388.0,94387.0,0.15524546]
[1735757691725,0.00099105,94388.0,94387.0,0.13224546]
[1735757691938,0.00099105,94388.0,94387.0,0.02825914]
[1735757692395,0.00099105,94388.0,94387.0,0.01264998]
[1735757693711,0.00099105,94388.0,94387.0,0.02826434]
[1735757695084,0.00099105,94388.0,94387.0,0.01264998]
[1735757702569,0.211891,94388.0,94387.0,0.01264998]
[1735757703840,0.211891,94388.0,94387.0,0.00200081]
[1735757706981,0.211891,94388.0,94387.0,0.01264733]
[1735757707186,0.211891,94388.0,94387.0,0.00200081]
[1735757707356,0.211891,94388.0,94387.0,0.01264733]
[1735757707533,0.211891,94388.0,94387.0,0.00200081]
[1735757708319,0.211791,94388.0,94387.0,0.00200081]
[1735757709368,0.211791,94388.0,94387.0,8.1e-07]
[1735757714173,0.211791,94388.0,94387.0,0.01178463]
[1735757714576,0.211791,94388.0,94387.0,0.01064732]
[1735757717087,0.211791,94388.0,94387.0,0.13763364]
[1735757718561,0.211791,94388.0,94387.0,0.24807245]
[1735757718925,0.211791,94388.0,94387.0,0.24907245]
[1735757719719,0.211791,94388.0,94387.0,0.64761714]
[1735757720120,0.211791,94388.0,94387.0,0.65061714]
[1735757720324,0.211791,94388.0,94387.0,0.15723505]
[1735757723261,0.211791,94388.0,94387.0,0.25231386]
[1735757724006,0.211791,94388.0,94387.0,0.14163364]
[1735757725413,0.211791,94388.0,94387.0,0.23671245]
[1735757725783,0.2119616,94388.0,94387.0,0.23671245]
[1735757726233,0.2119616,94388.0,94387.0,0.2523136]
[1735757726527,0.2119616,94388.0,94387.0,0.15723479]
[1735757728310,0.2119616,94388.0,94387.0,0.29951991]
[1735757728997,0.2119616,94388.0,94387.0,0.28391876]
[1735757729204,0.2119616,94388.0,94387.0,0.14163364]
[1735757729867,0.2119616,94388.0,94387.0,0.2367105]
[1735757730351,0.2119616,94388.0,94387.0,0.25231159]
[1735757730968,0.2118616,94388.0,94387.0,0.25231159]
[1735757731789,0.2118616,94388.0,94387.0,0.2367105]
[1735757733242,0.2118616,94388.0,94387.0,0.25231029]
[1735757733861,0.2118616,94388.0,94387.0,0.2367105]
[1735757735746,0.2118616,94388.0,94387.0,0.14163364]
[1735757738968,0.2118616,94388.0,94387.0,0.2367105]
[1735757739532,0.2118616,94388.0,94387.0,0.11863364]
[1735757739803,0.32767966,94388.0,94387.0,0.11863364]
[1735757740036,0.32767966,94388.0,94387.0,0.01464732]
[1735757740037,0.2901616,94388.0,94387.0,0.01464732]
[1735757740987,0.2901616,94388.0,94387.0,0.00100081]
[1735757741227,0.2901616,94388.0,94387.0,0.00200081]
[1735757741476,0.2911616,94388.0,94387.0,0.00200081]
[1735757742861,0.2901616,94388.0,94387.0,0.00200081]
[1735757743120,0.2901616,94388.0,94387.0,0.00300081]
[1735757748069,0.2118616,94388.0,94387.0,0.12998713]
[1735757748467,0.2118616,94388.0,94387.0,0.14063318]
[1735757749920,0.2118616,94388.0,94387.0,0.13963318]
[1735757750126,0.2118616,94388.0,94387.0,0.13763318]
[1735757750333,0.2118616,94388.0,94387.0,0.13863318]
[1735757750921,0.2118616,94388.0,94387.0,0.14263318]
[1735757751637,0.21180686,94388.0,94387.0,0.14263318]
[1735757768117,0.21180686,94388.0,94387.0,0.15823303]
[1735757768534,0.21180686,94388.0,94387.0,0.23463303]
[1735757771690,0.0001706,94388.0,94387.0,0.23463303]
[1735757771889,0.2120616,94388.0,94387.0,0.23463303]
[1735757773189,0.2120616,94388.0,94387.0,0.25957148]
[1735757773404,0.2120616,94388.0,94387.0,0.61011769]
[1735757773833,0.2120616,94388.0,94387.0,0.58517924]
[1735757774425,0.2120616,94388.0,94387.0,0.727622]
[1735757775286,0.2120616,94388.0,94387.0,0.58517924]
[1735757775883,0.2120616,94388.0,94387.0,0.56957939]
[1735757776283,0.2120616,94388.0,94387.0,0.58516019]
[1735757776513,0.2120616,94388.0,94387.0,0.23461398]
[1735757781789,0.21191475,94388.0,94387.0,0.23461398]
[1735757781983,0.21191475,94388.0,94387.0,0.21903318]
[1735757782200,0.21191475,94388.0,94387.0,0.23460437]
[1735757783378,0.21191475,94388.0,94387.0,0.32954254]
[1735757789346,2.375e-05,94388.0,94387.0,0.32954254]
[1735757792809,2.375e-05,94388.0,94387.0,0.4194597]
[1735757793435,2.375e-05,94388.0,94387.0,0.32954254]
[1735757795979,2.375e-05,94388.0,94387.0,0.35447155]
[1735757799117,2.375e-05,94388.0,94387.0,0.27807155]
[1735757800012,2.375e-05,94388.0,94387.0,0.18313338]
[1735757805999,2.375e-05,94388.0,94387.0,0.19373576]
[1735757806355,2.375e-05,94388.0,94387.0,0.33614302]
[1735757808899,2.375e-05,94388.0,94387.0,0.68682978]
[1735757810271,0.21206191,94388.0,94387.0,0.6532274]
[1735757810705,0.21206191,94388.0,94387.0,0.50889113]
[1735757810903,0.21191475,94388.0,94387.0,0.50889113]
[1735757812032,0.21191475,94388.0,94387.0,0.49331994]
[1735757812204,0.21191475,94388.0,94387.0,0.14263318]
[1735757817150,0.21191475,94388.0,94387.0,0.15821466]
[1735757817947,2.375e-05,94388.0,94387.0,0.1933801]
[1735757818145,2.375e-05,94388.0,94387.0,0.14263318]
[1735757819379,2.375e-05,94388.0,94387.0,0.15821403]
[1735757821852,2.375e-05,94388.0,94387.0,0.25324474]
[1735757823639,2.375e-05,94388.0,94387.0,0.15821403]
[1735757825303,2.375e-05,94388.0,94387.0,0.3007936]
[1735757826042,2.375e-05,94388.0,94387.0,0.15821403]
[1735757826999,2.375e-05,94388.0,94387.0,0.3007936]
[1735757830382,2.375e-05,94388.0,94387.0,0.15821403]
[1735757831456,2.375e-05,94388.0,94387.0,0.25326546]
[1735757831893,0.12362038,94388.0,94387.0,0.23026546]
[1735757832118,0.12435899,94388.0,94387.0,0.12627914]
[1735757832753,0.12435899,94388.0,94387.0,0.11069829]
[1735757833194,0.12435899,94388.0,94387.0,0.01464686]
[1735757833401,0.12535899,94388.0,94387.0,0.01064686]
[1735757833614,0.12535899,94388.0,94387.0,8.1e-07]
[1735757833845,0.08496236,94388.0,94387.0,8.1e-07]
[1735757834056,0.08515106,94388.0,94387.0,8.1e-07]
[1735757834269,0.08615106,94388.0,94387.0,8.1e-07]
[1735757834484,0.08715106,94388.0,94387.0,8.1e-07]
[1735757834756,0.08215106,94388.0,94387.0,8.1e-07]
[1735757834972,0.08615106,94388.0,94387.0,8.1e-07]
[1735757835204,0.08315106,94388.0,94387.0,8.1e-07]
[1735757836662,0.08515106,94388.0,94387.0,8.1e-07]
[1735757836876,0.08315106,94388.0,94387.0,8.1e-07]
[1735757837313,0.08615106,94388.0,94387.0,8.1e-07]
[1735757837523,0.08515106,94388.0,94387.0,8.1e-07]
[1735757837740,0.08615106,94388.0,94387.0,8.1e-07]
[1735757851634,0.00495106,94388.0,94387.0,8.1e-07]
[1735757851834,0.1,94397.0,94387.0,8.1e-07]
[1735757851835,0.2388113,94411.0,94405.0,0.1293]
[1735757852048,0.211745,94454.0,94418.0,0.291824]
[1735757852255,0.0431362,94419.0,94418.0,1.90459603]
[1735757852465,0.32239526,94431.0,94430.0,0.384797]
[1735757852678,0.32239526,94431.0,94430.0,1.55420383]
[1735757852895,0.32239526,94431.0,94430.0,1.76582017]
[1735757853101,0.32239526,94431.0,94430.0,1.81512017]
[1735757853310,0.32239526,94431.0,94430.0,1.9035648]
[1735757853525,0.00058152,94434.0,94433.0,0.1]
[1735757853754,0.00058152,94434.0,94433.0,0.37698632]
[1735757853966,0.00058152,94434.0,94433.0,0.48836495]
[1735757854415,0.00058152,94434.0,94433.0,0.52848352]
[1735757854627,0.00058152,94434.0,94433.0,0.5414136]
[1735757854833,0.00158152,94434.0,94433.0,0.90883189]
[1735757855062,8.53e-05,94447.0,94444.0,0.023]
[1735757855270,0.00013488,94445.0,94444.0,0.12698632]
[1735757855623,0.00013488,94445.0,94444.0,0.15403034]
[1735757856273,0.00013488,94445.0,94444.0,0.22439554]
[1735757856673,0.00013488,94445.0,94444.0,0.23139554]
[1735757856903,0.00113488,94445.0,94444.0,0.24039554]
[1735757857899,0.00113488,94445.0,94444.0,0.17003034]
[1735757860276,0.00113488,94445.0,94444.0,0.14703034]
[1735757860684,0.00084809,94445.0,94444.0,0.17003034]
[1735757861093,0.00084809,94445.0,94444.0,0.14703034]
[1735757861448,0.00084809,94445.0,94444.0,0.17003034]
[1735757861870,0.00084809,94445.0,94444.0,0.15460032]
[1735757862279,0.00084809,94445.0,94444.0,0.14760032]
[1735757862480,0.2118474,94446.0,94445.0,0.023]
[1735757862691,0.2118474,94446.0,94445.0,0.12698632]
[1735757862934,0.2118474,94446.0,94445.0,0.13858018]
[1735757863921,0.2118474,94446.0,94445.0,0.14158018]
[1735757864377,0.2118474,94446.0,94445.0,0.13858018]
[1735757864594,0.2118474,94446.0,94445.0,0.14158018]
[1735757865217,0.2118474,94446.0,94445.0,0.14258018]
[1735757865700,0.2118474,94446.0,94445.0,0.14158018]
[1735757865907,0.2118474,94446.0,94445.0,0.13958018]
[1735757866114,0.2118474,94446.0,94445.0,0.14258018]
[1735757867313,0.0452,94503.0,94446.0,0.15]
[1735757867514,0.0774,94514.0,94446.0,0.15]
[1735757867515,0.0001706,94483.0,94481.0,0.25398632]
[1735757867743,0.00023404,94482.0,94481.0,1.49790683]
[1735757867942,0.00058381,94487.0,94486.0,0.211671]
[1735757868120,0.00058381,94487.0,94486.0,0.58865732]
[1735757868485,0.00058381,94487.0,94486.0,0.74394385]
[1735757869077,0.00058381,94487.0,94486.0,0.71949304]
[1735757869257,0.00058381,94487.0,94486.0,0.72649304]
[1735757869676,0.000105,94512.0,94488.0,0.1]
[1735757869826,0.000105,94512.0,94489.0,0.334664]
[1735757870078,0.000105,94512.0,94489.0,0.49947101]
[1735757870366,0.000105,94512.0,94489.0,0.53918659]
[1735757871004,0.000105,94512.0,94489.0,0.56974803]
[1735757871846,0.201596,94520.0,94497.0,0.1]
[1735757872077,0.211606,94516.0,94514.0,0.023]
[1735757872256,0.211606,94516.0,94515.0,0.12698632]
[1735757872452,0.211606,94516.0,94515.0,0.13853751]
[1735757872652,0.211597,94519.0,94516.0,0.023]
[1735757872913,0.211597,94519.0,94518.0,0.023]
[1735757873090,0.211597,94519.0,94518.0,0.12698632]
[1735757873313,0.211597,94519.0,94518.0,0.13853701]
[1735757873736,0.211597,94519.0,94518.0,0.15239071]
[1735757873944,0.211597,94519.0,94518.0,0.13853701]
[1735757875502,0.211597,94519.0,94518.0,0.13953701]
[1735757875705,0.211597,94519.0,94518.0,0.15579691]
[1735757876324,0.211597,94519.0,94518.0,0.15879691]
[1735757876891,0.211597,94519.0,94518.0,0.15779691]
[1735757877276,0.211597,94519.0,94518.0,0.18223611]
[1735757877482,0.211597,94519.0,94518.0,0.18323611]
[1735757877782,0.2116822,94519.0,94518.0,0.18323611]
[1735757878606,0.2116822,94519.0,94518.0,0.13179691]
[1735757878762,0.2116822,94519.0,94518.0,0.13379691]
[1735757879344,0.2116822,94519.0,94518.0,0.13179691]
[1735757879760,0.2116822,94519.0,94518.0,0.15627239]
[1735757880193,0.2116822,94519.0,94518.0,0.15827239]
[1735757881044,0.2116822,94519.0,94518.0,0.15727239]
[1735757881439,0.2116822,94519.0,94518.0,0.15527239]
[1735757882932,0.2116822,94519.0,94518.0,0.18596503]
[1735757884430,0.211583,94526.0,94518.0,0.18596503]
[1735757884626,0.211584,94525.0,94519.0,0.10398632]
[1735757884881,0.211593,94521.0,94519.0,0.1437217]
[1735757885269,0.211593,94521.0,94520.0,0.01153198]
[1735757885496,0.211593,94521.0,94520.0,0.1307782]
[1735757885674,0.211593,94521.0,94520.0,0.11924622]
[1735757885879,0.211593,94521.0,94520.0,0.1308334]
[1735757886081,0.211593,94521.0,94520.0,0.0152599]
[1735757886257,0.2750692,94521.0,94520.0,0.02684708]
[1735757886659,0.0644762,94521.0,94493.0,0.023]
[1735757886869,0.211595,94520.0,94501.0,0.02314874]
[1735757887047,0.211631,94504.0,94503.0,0.023]
[1735757887267,0.211631,94504.0,94503.0,0.12698632]
[1735757887465,0.211631,94504.0,94503.0,0.18219997]
[1735757888522,0.212631,94504.0,94503.0,0.18919997]
[1735757888746,0.0005837,94537.0,94503.0,0.18919997]
[1735757888947,0.21159,94523.0,94504.0,0.10398632]
[1735757889102,0.42318,94522.0,94504.0,0.10770376]
[1735757889309,0.211628,94506.0,94505.0,0.01158969]
[1735757889511,0.211628,94506.0,94505.0,0.1554822]
[1735757890137,0.211628,94506.0,94505.0,0.15919964]
[1735757890471,0.211628,94506.0,94505.0,0.16119964]
[1735757891786,0.211628,94506.0,94505.0,0.16719964]
[1735757892002,0.21157406,94506.0,94505.0,0.16719964]
[1735757893368,0.21157406,94506.0,94505.0,0.14264179]
[1735757894865,0.21157406,94506.0,94505.0,0.13664179]
[1735757895276,0.21157406,94506.0,94505.0,0.14064179]
[1735757895751,0.21157406,94506.0,94505.0,0.13864179]
[1735757895935,0.21157406,94506.0,94505.0,0.13964179]
[1735757896693,0.21157406,94506.0,94505.0,0.16433959]
[1735757897545,0.21157406,94506.0,94505.0,0.06035327]
[1735757897726,0.21157406,94506.0,94505.0,0.04876358]
[1735757898563,0.21157406,94506.0,94505.0,0.04476358]
[1735757898748,0.21157406,94506.0,94505.0,0.04004614]
[1735757899062,0.21157406,94506.0,94505.0,0.01534834]
[1735757899851,0.21157406,94506.0,94505.0,0.03112773]
[1735757900574,0.21157406,94506.0,94505.0,0.01534834]
[1735757901429,0.21157406,94506.0,94505.0,0.01551874]
[1735757903066,0.21157406,94506.0,94505.0,0.0001704]
[1735757903267,0.24322105,94506.0,94505.0,0.0001704]
[1735757903469,0.21157406,94506.0,94505.0,0.0001704]
[1735757910922,0.21357406,94506.0,94505.0,0.0001704]
[1735757911537,0.21657406,94506.0,94505.0,0.0001704]
[1735757911732,0.21257406,94506.0,94505.0,0.0001704]
[1735757912045,0.21357406,94506.0,94505.0,0.0001704]
[1735757912253,0.28199507,94506.0,94505.0,0.0001704]
[1735757912461,0.28299507,94506.0,94505.0,0.0001704]
[1735757912668,0.43299507,94506.0,94505.0,0.0001704]
[1735757914911,0.43308027,94506.0,94505.0,0.0001704]
[1735757921398,0.43308027,94506.0,94505.0,4e-07]
[1735757924670,0.36465926,94506.0,94505.0,4e-07]
[1735757936472,0.45868832,94506.0,94505.0,4e-07]
[1735757938458,0.36465926,94506.0,94505.0,4e-07]
[1735757940477,0.50550288,94506.0,94505.0,4e-07]
[1735757942265,0.36465926,94506.0,94505.0,4e-07]
[1735757942481,0.46864558,94506.0,94505.0,4e-07]
[1735757944673,0.461635,94502.0,94501.0,1.4e-07]
[1735757944878,0.538735,94502.0,94501.0,1.4e-07]
[1735757946325,0.7808808,94502.0,94501.0,1.4e-07]
[1735757947400,0.549735,94502.0,94501.0,1.4e-07]
[1735757947626,0.62780032,94502.0,94501.0,1.4e-07]
[1735757948259,0.72780032,94502.0,94501.0,1.4e-07]
[1735757948890,0.96294612,94502.0,94501.0,1.4e-07]
[1735757950508,0.96294612,94502.0,94501.0,5.4e-07]
[1735757950722,0.72780032,94502.0,94501.0,5.4e-07]
[1735757959613,0.72774449,94502.0,94501.0,5.4e-07]
[1735757961568,0.72782969,94502.0,94501.0,5.4e-07]
[1735757971114,0.62782969,94502.0,94501.0,5.4e-07]
[1735757980247,0.55072969,94502.0,94501.0,5.4e-07]
[1735757982700,0.55172969,94502.0,94501.0,5.4e-07]
[1735758003446,0.47366437,94502.0,94501.0,5.4e-07]
[1735758003668,0.1120852,94502.0,94501.0,5.4e-07]
[1735758004010,0.4237202,94502.0,94501.0,5.4e-07]
[1735758004221,0.61060652,94502.0,94501.0,5.4e-07]
[1735758004882,0.65280652,94502.0,94501.0,5.4e-07]
[1735758005092,0.74979284,94502.0,94501.0,5.4e-07]
[1735758005302,0.75579284,94502.0,94501.0,5.4e-07]
[1735758005520,0.76379284,94502.0,94501.0,5.4e-07]
[1735758005741,0.76379284,94502.0,94466.0,0.0469]
[1735758005742,0.211714,94467.0,94466.0,0.0469]
[1735758005943,0.211714,94467.0,94466.0,0.04704874]
[1735758006922,0.211714,94467.0,94466.0,0.00014874]
[1735758007125,0.30723389,94467.0,94466.0,0.00014874]
[1735758007283,0.37345616,94467.0,94466.0,0.00014874]
[1735758008099,0.30723389,94467.0,94466.0,0.00014874]
[1735758008514,0.31123389,94467.0,94466.0,0.00014874]
[1735758009000,0.09951989,94467.0,94466.0,0.10413506]
[1735758009133,0.10251989,94467.0,94466.0,0.14913506]
[1735758009367,0.007,94467.0,94466.0,0.14913506]
[1735758011293,0.211709,94469.0,94466.0,0.14913506]
[1735758011470,0.211714,94467.0,94466.0,0.04514874]
[1735758011656,0.214714,94467.0,94466.0,0.04514874]
[1735758012114,0.213714,94467.0,94466.0,0.04514874]
[1735758012428,0.211714,94467.0,94466.0,0.04514874]
[1735758012863,0.213714,94467.0,94466.0,0.04514874]
[1735758013256,0.214714,94467.0,94466.0,0.04514874]
[1735758014026,0.212714,94467.0,94466.0,0.04514874]
[1735758014448,0.213714,94467.0,94466.0,0.04514874]
[1735758014684,0.214714,94467.0,94466.0,0.04514874]
[1735758015095,0.215714,94467.0,94466.0,0.04514874]
[1735758015507,0.216714,94467.0,94466.0,0.04514874]
[1735758019580,0.216714,94467.0,94466.0,0.04531934]
[1735758020426,0.216714,94467.0,94466.0,0.14930566]
[1735758020833,0.216714,94467.0,94466.0,0.16183509]
[1735758021252,0.005,94467.0,94466.0,0.16183509]
[1735758021460,0.005,94467.0,94466.0,0.23813509]
[1735758025158,0.004,94467.0,94466.0,0.23813509]